[Event "Early-Titled-Tuesday-Blitz-August-29-2023"]
[Site "Chess.com"]
[Date "2023.08.29"]
[Round "5"]
[White "MITerryble"]
[Black "YairParkhov"]
[Result "1-0"]
[WhiteElo "2944"]
[BlackElo "2676"]
[TimeControl "180+1"]
[EndTime "8:58:51 PDT"]
[Termination "MITerryble won by checkmate"]

1. e4 {[%clk 0:03:00.9]} 1... c6 {[%clk 0:02:56.5]} 2. Nf3 {[%clk 0:03:00.3]}
2... d5 {[%clk 0:02:57.4]} 3. exd5 {[%clk 0:03:00.7]} 3... cxd5 {[%clk
0:02:57.4]} 4. Ne5 {[%clk 0:03:01.2]} 4... Nf6 {[%clk 0:02:47.9]} 5. d4 {[%clk
0:03:01]} 5... Nc6 {[%clk 0:02:42.8]} 6. Bb5 {[%clk 0:03:00.3]} 6... Bd7 {[%clk
0:02:42.5]} 7. Bxc6 {[%clk 0:02:55.2]} 7... Bxc6 {[%clk 0:02:43.3]} 8. O-O
{[%clk 0:02:53]} 8... g6 {[%clk 0:02:40.8]} 9. Re1 {[%clk 0:02:38.6]} 9... Bg7
{[%clk 0:02:40.8]} 10. b3 {[%clk 0:02:27.3]} 10... O-O {[%clk 0:02:40.3]} 11.
Ba3 {[%clk 0:02:27.6]} 11... Re8 {[%clk 0:02:39.4]} 12. Nd2 {[%clk 0:02:25.9]}
12... Rc8 {[%clk 0:02:37]} 13. c3 {[%clk 0:02:14]} 13... b6 {[%clk 0:02:24.1]}
14. Qf3 {[%clk 0:02:11.2]} 14... Bb7 {[%clk 0:02:23.1]} 15. h4 {[%clk
0:01:31.5]} 15... Qc7 {[%clk 0:02:15.5]} 16. Rac1 {[%clk 0:01:26.3]} 16... e6
{[%clk 0:02:15.7]} 17. Qf4 {[%clk 0:01:01.1]} 17... Nh5 {[%clk 0:01:49.4]} 18.
Qe3 {[%clk 0:01:00.9]} 18... f6 {[%clk 0:01:42.6]} 19. Nd3 {[%clk 0:00:59.1]}
19... Bh8 {[%clk 0:00:56]} 20. g4 {[%clk 0:00:58.9]} 20... Ng7 {[%clk
0:00:56.2]} 21. Qh6 {[%clk 0:00:46.8]} 21... Qf7 {[%clk 0:00:52.7]} 22. Nf3
{[%clk 0:00:45.1]} 22... Ba6 {[%clk 0:00:48.7]} 23. Re3 {[%clk 0:00:32.5]} 23...
Bxd3 {[%clk 0:00:46.5]} 24. Rxd3 {[%clk 0:00:33.4]} 24... Rc6 {[%clk 0:00:37.7]}
25. Kg2 {[%clk 0:00:29.6]} 25... Rec8 {[%clk 0:00:37.4]} 26. Re3 {[%clk
0:00:22.6]} 26... Ne8 {[%clk 0:00:35.7]} 27. Qf4 {[%clk 0:00:20.8]} 27... Bg7
{[%clk 0:00:33.8]} 28. Rc2 {[%clk 0:00:14.9]} 28... Qc7 {[%clk 0:00:33.3]} 29.
Qxc7 {[%clk 0:00:12]} 29... Nxc7 {[%clk 0:00:34.2]} 30. Bb2 {[%clk 0:00:10.3]}
30... Kf7 {[%clk 0:00:30.6]} 31. a4 {[%clk 0:00:08.5]} 31... Ne8 {[%clk
0:00:27.8]} 32. Rce2 {[%clk 0:00:08.2]} 32... Nc7 {[%clk 0:00:22.4]} 33. Kf1
{[%clk 0:00:08.5]} 33... b5 {[%clk 0:00:20.4]} 34. axb5 {[%clk 0:00:04.1]} 34...
Nxb5 {[%clk 0:00:20.8]} 35. Kg2 {[%clk 0:00:05]} 35... h6 {[%clk 0:00:17.9]} 36.
c4 {[%clk 0:00:05.3]} 36... Nc7 {[%clk 0:00:16.3]} 37. c5 {[%clk 0:00:04.1]}
37... g5 {[%clk 0:00:15.2]} 38. hxg5 {[%clk 0:00:03.4]} 38... hxg5 {[%clk
0:00:15.7]} 39. Ne1 {[%clk 0:00:03.8]} 39... e5 {[%clk 0:00:13]} 40. dxe5 {[%clk
0:00:02.7]} 40... Ne6 {[%clk 0:00:13.7]} 41. exf6 {[%clk 0:00:02.9]} 41... Nf4+
{[%clk 0:00:13.1]} 42. Kf1 {[%clk 0:00:03.4]} 42... Bxf6 {[%clk 0:00:13.4]} 43.
Rd2 {[%clk 0:00:02.8]} 43... Rh8 {[%clk 0:00:12.9]} 44. Nf3 {[%clk 0:00:02.1]}
44... Rh1+ {[%clk 0:00:12.3]} 45. Ng1 {[%clk 0:00:02.7]} 45... Bxb2 {[%clk
0:00:12.5]} 46. Rxb2 {[%clk 0:00:03.6]} 46... Rxc5 {[%clk 0:00:13.1]} 47. Rb1
{[%clk 0:00:03.8]} 47... d4 {[%clk 0:00:09.6]} 48. Re4 {[%clk 0:00:04.2]} 48...
d3 {[%clk 0:00:09.4]} 49. Rd4 {[%clk 0:00:04.8]} 49... Rxg1+ {[%clk 0:00:07.1]}
50. Kxg1 {[%clk 0:00:04.8]} 50... Ne2+ {[%clk 0:00:08]} 51. Kg2 {[%clk
0:00:05.5]} 51... Nxd4 {[%clk 0:00:08.9]} 52. Rd1 {[%clk 0:00:06.3]} 52... Nxb3
{[%clk 0:00:08.8]} 53. Rxd3 {[%clk 0:00:06.7]} 53... Rb5 {[%clk 0:00:09.3]} 54.
Rd7+ {[%clk 0:00:06.7]} 54... Ke6 {[%clk 0:00:09.4]} 55. Rxa7 {[%clk 0:00:07.6]}
55... Nc5 {[%clk 0:00:09.2]} 56. Kf3 {[%clk 0:00:05.4]} 56... Nd3 {[%clk
0:00:08.9]} 57. Ke3 {[%clk 0:00:05.2]} 57... Nf4 {[%clk 0:00:08.9]} 58. Ra8
{[%clk 0:00:03.7]} 58... Rb3+ {[%clk 0:00:08.8]} 59. Ke4 {[%clk 0:00:04.3]}
59... Rb4+ {[%clk 0:00:09.1]} 60. Ke3 {[%clk 0:00:04.9]} 60... Nd5+ {[%clk
0:00:09.5]} 61. Kf3 {[%clk 0:00:05.5]} 61... Rf4+ {[%clk 0:00:09.6]} 62. Kg3
{[%clk 0:00:05.9]} 62... Nf6 {[%clk 0:00:10.3]} 63. f3 {[%clk 0:00:06]} 63...
Rb4 {[%clk 0:00:10.4]} 64. Ra6+ {[%clk 0:00:04.2]} 64... Kf7 {[%clk 0:00:10.3]}
65. Ra7+ {[%clk 0:00:04.3]} 65... Kg6 {[%clk 0:00:10.7]} 66. Ra6 {[%clk
0:00:05.2]} 66... Rb2 {[%clk 0:00:10.6]} 67. Rc6 {[%clk 0:00:05.5]} 67... Kf7
{[%clk 0:00:10.7]} 68. Rc5 {[%clk 0:00:05.4]} 68... Kg6 {[%clk 0:00:10.2]} 69.
Rc6 {[%clk 0:00:05.9]} 69... Rd2 {[%clk 0:00:10.6]} 70. Ra6 {[%clk 0:00:06.2]}
70... Kf7 {[%clk 0:00:10.6]} 71. Ra5 {[%clk 0:00:05.4]} 71... Nd5 {[%clk
0:00:10.8]} 72. Ra7+ {[%clk 0:00:04.2]} 72... Ke6 {[%clk 0:00:10.7]} 73. Ra6+
{[%clk 0:00:04.7]} 73... Ke5 {[%clk 0:00:10.8]} 74. Ra5 {[%clk 0:00:05.3]} 74...
Kd4 {[%clk 0:00:10.4]} 75. Rb5 {[%clk 0:00:03.7]} 75... Ke3 {[%clk 0:00:09.3]}
76. Ra5 {[%clk 0:00:03.1]} 76... Ke2 {[%clk 0:00:06.9]} 77. Rb5 {[%clk
0:00:02.3]} 77... Kf1 {[%clk 0:00:05.7]} 78. Rb1+ {[%clk 0:00:02.3]} 78... Ke2
{[%clk 0:00:06.1]} 79. Rb5 {[%clk 0:00:03.2]} 79... Ke3 {[%clk 0:00:04.1]} 80.
Rb3+ {[%clk 0:00:03.1]} 80... Kd4 {[%clk 0:00:04.1]} 81. Rb5 {[%clk 0:00:02.3]}
81... Kc4 {[%clk 0:00:04.6]} 82. Ra5 {[%clk 0:00:02.6]} 82... Kb4 {[%clk
0:00:04.6]} 83. Ra1 {[%clk 0:00:01.7]} 83... Ne3 {[%clk 0:00:03.6]} 84. Rb1+
{[%clk 0:00:01.5]} 84... Kc4 {[%clk 0:00:03.8]} 85. Rg1 {[%clk 0:00:02.4]} 85...
Kd4 {[%clk 0:00:03.7]} 86. f4 {[%clk 0:00:02.9]} 86... gxf4+ {[%clk 0:00:04.1]}
87. Kxf4 {[%clk 0:00:03.8]} 87... Nd5+ {[%clk 0:00:04.5]} 88. Kg5 {[%clk
0:00:04.2]} 88... Rf2 {[%clk 0:00:04.7]} 89. Rd1+ {[%clk 0:00:04.3]} 89... Ke5
{[%clk 0:00:05.2]} 90. Re1+ {[%clk 0:00:04.4]} 90... Kd6 {[%clk 0:00:05.5]} 91.
Kg6 {[%clk 0:00:05]} 91... Nf4+ {[%clk 0:00:05.6]} 92. Kg5 {[%clk 0:00:05.4]}
92... Ne6+ {[%clk 0:00:06.3]} 93. Kg6 {[%clk 0:00:05.7]} 93... Ke7 {[%clk
0:00:06.4]} 94. Re4 {[%clk 0:00:04.9]} 94... Rg2 {[%clk 0:00:05.9]} 95. Ra4
{[%clk 0:00:04.8]} 95... Rg1 {[%clk 0:00:06.1]} 96. Rb4 {[%clk 0:00:03.7]} 96...
Kd6 {[%clk 0:00:06.4]} 97. Re4 {[%clk 0:00:03.9]} 97... Kd5 {[%clk 0:00:06.7]}
98. Ra4 {[%clk 0:00:04.5]} 98... Nd4 {[%clk 0:00:07.1]} 99. Ra5+ {[%clk
0:00:03.2]} 99... Ke4 {[%clk 0:00:07]} 100. g5 {[%clk 0:00:04.1]} 100... Ne6
{[%clk 0:00:06.5]} 101. Kf6 {[%clk 0:00:04.5]} 101... Nf4 {[%clk 0:00:06.5]}
102. Ra4+ {[%clk 0:00:04.4]} 102... Kf3 {[%clk 0:00:07]} 103. Kf5 {[%clk
0:00:04.8]} 103... Nh3 {[%clk 0:00:03.8]} 104. Ra3+ {[%clk 0:00:05]} 104... Kg2
{[%clk 0:00:04.3]} 105. g6 {[%clk 0:00:05.6]} 105... Rf1+ {[%clk 0:00:04.8]}
106. Ke6 {[%clk 0:00:06.1]} 106... Nf4+ {[%clk 0:00:04.5]} 107. Kf7 {[%clk
0:00:06.5]} 107... Nd5+ {[%clk 0:00:03.7]} 108. Kg8 {[%clk 0:00:05.5]} 108...
Ne7+ {[%clk 0:00:03.6]} 109. Kg7 {[%clk 0:00:05.9]} 109... Nf5+ {[%clk
0:00:03.9]} 110. Kh8 {[%clk 0:00:04.7]} 110... Rh1+ {[%clk 0:00:03.5]} 111. Kg8
{[%clk 0:00:04.8]} 111... Rh6 {[%clk 0:00:03.1]} 112. Kf7 {[%clk 0:00:04.9]}
112... Nd6+ {[%clk 0:00:03]} 113. Kg7 {[%clk 0:00:05.4]} 113... Nf5+ {[%clk
0:00:02.6]} 114. Kf7 {[%clk 0:00:06]} 114... Nd6+ {[%clk 0:00:03]} 115. Kf6
{[%clk 0:00:06.6]} 115... Ne4+ {[%clk 0:00:02.8]} 116. Kf5 {[%clk 0:00:06.5]}
116... Ng3+ {[%clk 0:00:02.6]} 117. Kg5 {[%clk 0:00:06.6]} 117... Rh5+ {[%clk
0:00:02.5]} 118. Kg4 {[%clk 0:00:05.8]} 118... Rh6 {[%clk 0:00:01.8]} 119. Rxg3+
{[%clk 0:00:05.4]} 119... Kf2 {[%clk 0:00:02.4]} 120. Rf3+ {[%clk 0:00:05]}
120... Kg2 {[%clk 0:00:02.9]} 121. Rf6 {[%clk 0:00:05.9]} 121... Rh8 {[%clk
0:00:02.2]} 122. g7 {[%clk 0:00:05.5]} 122... Rg8 {[%clk 0:00:02.7]} 123. Rf7
{[%clk 0:00:06.1]} 123... Kh2 {[%clk 0:00:02.5]} 124. Kg5 {[%clk 0:00:04.7]}
124... Kg3 {[%clk 0:00:02.3]} 125. Kg6 {[%clk 0:00:05.4]} 125... Kg4 {[%clk
0:00:03.2]} 126. Kh7 {[%clk 0:00:06]} 126... Rc8 {[%clk 0:00:03.1]} 127. g8=Q+
{[%clk 0:00:06.6]} 127... Kh5 {[%clk 0:00:03.4]} 128. Qg6+ {[%clk 0:00:05.8]}
128... Kh4 {[%clk 0:00:04.3]} 129. Rf4+ {[%clk 0:00:05.9]} 129... Kh3 {[%clk
0:00:05]} 130. Qg4+ {[%clk 0:00:06.3]} 130... Kh2 {[%clk 0:00:05.6]} 131. Rf2+
{[%clk 0:00:07.2]} 131... Kh1 {[%clk 0:00:06.2]} 132. Qg2# {[%clk 0:00:08.1]}
1-0

[Event "Early-Titled-Tuesday-Blitz-August-29-2023"]
[Site "Chess.com"]
[Date "2023.08.29"]
[Round "6"]
[White "Xavier_mompel"]
[Black "vladoboch"]
[Result "1/2-1/2"]
[WhiteElo "2318"]
[BlackElo "2442"]
[TimeControl "180+1"]
[EndTime "9:00:51 PDT"]
[Termination "Game drawn by repetition"]

1. e4 {[%clk 0:03:00.9]} 1... c5 {[%clk 0:02:59.7]} 2. Nf3 {[%clk 0:03:00.9]}
2... Nc6 {[%clk 0:03:00.4]} 3. d4 {[%clk 0:03:00.8]} 3... cxd4 {[%clk
0:03:01.3]} 4. Nxd4 {[%clk 0:03:01.4]} 4... e5 {[%clk 0:03:02.2]} 5. Nb5 {[%clk
0:03:01.6]} 5... d6 {[%clk 0:03:02.8]} 6. c4 {[%clk 0:03:01.8]} 6... Be7 {[%clk
0:03:02.2]} 7. N1c3 {[%clk 0:03:01.5]} 7... a6 {[%clk 0:03:02.8]} 8. Na3 {[%clk
0:03:01.4]} 8... f5 {[%clk 0:03:03.6]} 9. exf5 {[%clk 0:02:56]} 9... Bxf5 {[%clk
0:03:04.2]} 10. Bd3 {[%clk 0:02:49.6]} 10... Be6 {[%clk 0:03:04.3]} 11. O-O
{[%clk 0:02:44.6]} 11... Nf6 {[%clk 0:03:04.1]} 12. Ne4 {[%clk 0:02:41.6]} 12...
O-O {[%clk 0:03:02.9]} 13. Nxf6+ {[%clk 0:02:40.8]} 13... gxf6 {[%clk
0:02:56.2]} 14. Bxh7+ {[%clk 0:02:27.4]} 14... Kxh7 {[%clk 0:02:38.8]} 15. Qh5+
{[%clk 0:02:27.6]} 15... Kg8 {[%clk 0:02:37.1]} 16. Qg6+ {[%clk 0:02:26.6]}
16... Kh8 {[%clk 0:02:37.6]} 17. Qh6+ {[%clk 0:02:25.8]} 17... Kg8 {[%clk
0:02:38.2]} 18. Qg6+ {[%clk 0:02:26.1]} 18... Kh8 {[%clk 0:02:38.6]} 19. Qh6+
{[%clk 0:02:26.7]} 19... Kg8 {[%clk 0:02:37.9]} 20. Qg6+ {[%clk 0:02:27.2]}
1/2-1/2

[Event "Early-Titled-Tuesday-Blitz-August-29-2023"]
[Site "Chess.com"]
[Date "2023.08.29"]
[Round "6"]
[White "dropstoneDP"]
[Black "BahadirOzen"]
[Result "1-0"]
[WhiteElo "2975"]
[BlackElo "2803"]
[TimeControl "180+1"]
[EndTime "9:00:59 PDT"]
[Termination "dropstoneDP won by resignation"]

1. d4 {[%clk 0:03:00.9]} 1... a6 {[%clk 0:02:59.9]} 2. e4 {[%clk 0:03:00.9]}
2... c6 {[%clk 0:03:00.4]} 3. Nf3 {[%clk 0:03:00.8]} 3... d5 {[%clk 0:03:00.8]}
4. exd5 {[%clk 0:03:01.2]} 4... cxd5 {[%clk 0:03:01.5]} 5. c3 {[%clk 0:03:01.4]}
5... Nc6 {[%clk 0:02:56.2]} 6. Bf4 {[%clk 0:02:59.2]} 6... Bg4 {[%clk
0:02:38.9]} 7. Nbd2 {[%clk 0:02:59.3]} 7... Nf6 {[%clk 0:02:38.4]} 8. Qb3 {[%clk
0:02:58.2]} 8... Na5 {[%clk 0:02:37.2]} 9. Qa4+ {[%clk 0:02:57.5]} 9... Bd7
{[%clk 0:02:37.4]} 10. Qc2 {[%clk 0:02:57.8]} 10... Nc6 {[%clk 0:02:17.5]} 11.
Bd3 {[%clk 0:02:57.3]} 11... Bg4 {[%clk 0:02:15.8]} 12. Ne5 {[%clk 0:02:57]}
12... Nxe5 {[%clk 0:02:05.6]} 13. dxe5 {[%clk 0:02:57.9]} 13... Nd7 {[%clk
0:02:06.2]} 14. h3 {[%clk 0:02:57.9]} 14... Bh5 {[%clk 0:02:05.9]} 15. g4 {[%clk
0:02:57]} 15... Bg6 {[%clk 0:02:05.9]} 16. e6 {[%clk 0:02:56.9]} 16... Bxd3
{[%clk 0:01:57.1]} 17. exd7+ {[%clk 0:02:56.7]} 1-0

[Event "Early-Titled-Tuesday-Blitz-August-29-2023"]
[Site "Chess.com"]
[Date "2023.08.29"]
[Round "6"]
[White "GiorgianBarbosa"]
[Black "Tomytoteph"]
[Result "0-1"]
[WhiteElo "2453"]
[BlackElo "2631"]
[TimeControl "180+1"]
[EndTime "9:01:46 PDT"]
[Termination "Tomytoteph won by checkmate"]

1. c4 {[%clk 0:03:00]} 1... e5 {[%clk 0:02:59.3]} 2. g3 {[%clk 0:02:58.8]} 2...
Nc6 {[%clk 0:02:59.8]} 3. Bg2 {[%clk 0:02:59]} 3... Bc5 {[%clk 0:03:00.6]} 4. e3
{[%clk 0:02:58.9]} 4... a6 {[%clk 0:03:01]} 5. Ne2 {[%clk 0:02:59.3]} 5... Ba7
{[%clk 0:03:01.5]} 6. O-O {[%clk 0:02:59.6]} 6... d6 {[%clk 0:03:01.9]} 7. b3
{[%clk 0:02:59.2]} 7... h5 {[%clk 0:03:01.8]} 8. d4 {[%clk 0:02:55.6]} 8... h4
{[%clk 0:03:01.6]} 9. Nbc3 {[%clk 0:02:55.1]} 9... hxg3 {[%clk 0:03:01.5]} 10.
hxg3 {[%clk 0:02:54.8]} 10... Qg5 {[%clk 0:03:01.6]} 11. Nd5 {[%clk 0:02:50]}
11... Qh6 {[%clk 0:02:55.6]} 12. Re1 {[%clk 0:02:42.8]} 12... Qh2+ {[%clk
0:02:45.5]} 13. Kf1 {[%clk 0:02:39]} 13... Bh3 {[%clk 0:02:46.4]} 14. Nef4
{[%clk 0:02:28.9]} 14... exf4 {[%clk 0:02:44.3]} 15. exf4+ {[%clk 0:02:23.5]}
15... Kd8 {[%clk 0:02:44.2]} 16. Bxh3 {[%clk 0:02:18.7]} 16... Qxh3+ {[%clk
0:02:44.6]} 17. Ke2 {[%clk 0:02:17.8]} 17... Nxd4+ {[%clk 0:02:45.2]} 18. Kd3
{[%clk 0:02:17.4]} 18... Qf5+ {[%clk 0:02:43.2]} 19. Kc3 {[%clk 0:02:16.3]}
19... Rh2 {[%clk 0:02:35.2]} 20. Be3 {[%clk 0:02:15.6]} 20... c5 {[%clk
0:02:32.3]} 21. Kb2 {[%clk 0:02:09.4]} 21... Nf6 {[%clk 0:02:31.5]} 22. Bxd4
{[%clk 0:02:00.3]} 22... cxd4 {[%clk 0:02:29.6]} 23. Ne7 {[%clk 0:01:59.6]}
23... Rxf2+ {[%clk 0:02:29.2]} 24. Ka3 {[%clk 0:01:59.2]} 24... Qa5# {[%clk
0:02:29]} 0-1

[Event "Early-Titled-Tuesday-Blitz-August-29-2023"]
[Site "Chess.com"]
[Date "2023.08.29"]
[Round "6"]
[White "averageFM"]
[Black "Truequitos"]
[Result "1-0"]
[WhiteElo "2515"]
[BlackElo "2384"]
[TimeControl "180+1"]
[EndTime "9:02:20 PDT"]
[Termination "averageFM won by resignation"]

1. e4 {[%clk 0:03:00.9]} 1... e6 {[%clk 0:03:00.2]} 2. d4 {[%clk 0:03:00.3]}
2... d5 {[%clk 0:03:00.8]} 3. exd5 {[%clk 0:03:01.2]} 3... exd5 {[%clk
0:03:00.7]} 4. Nf3 {[%clk 0:03:01.5]} 4... c5 {[%clk 0:03:01.3]} 5. Bb5+ {[%clk
0:02:59.7]} 5... Nc6 {[%clk 0:03:00.9]} 6. O-O {[%clk 0:02:56.5]} 6... Be7
{[%clk 0:03:00.2]} 7. Ne5 {[%clk 0:02:51.5]} 7... Bd7 {[%clk 0:02:45.9]} 8. Bxc6
{[%clk 0:02:36.1]} 8... bxc6 {[%clk 0:02:37.7]} 9. Qh5 {[%clk 0:02:34.2]} 9...
g6 {[%clk 0:02:33.3]} 10. Qf3 {[%clk 0:02:33.9]} 10... Nf6 {[%clk 0:02:31.1]}
11. Bh6 {[%clk 0:02:33.2]} 11... Bf8 {[%clk 0:02:14.4]} 12. Re1 {[%clk 0:02:22]}
12... Be7 {[%clk 0:02:02.5]} 13. Bg7 {[%clk 0:02:11.3]} 13... Qa5 {[%clk
0:02:00.4]} 14. Nc3 {[%clk 0:02:05.4]} 14... cxd4 {[%clk 0:01:58]} 15. Bxh8
{[%clk 0:01:59]} 15... dxc3 {[%clk 0:01:55.5]} 16. Bxf6 {[%clk 0:01:58.6]} 16...
cxb2 {[%clk 0:01:56]} 17. Bxe7 {[%clk 0:01:53.1]} 1-0

[Event "Early-Titled-Tuesday-Blitz-August-29-2023"]
[Site "Chess.com"]
[Date "2023.08.29"]
[Round "6"]
[White "gm_rashid"]
[Black "ErikRonka"]
[Result "1-0"]
[WhiteElo "2390"]
[BlackElo "2489"]
[TimeControl "180+1"]
[EndTime "9:02:56 PDT"]
[Termination "gm_rashid won by resignation"]

1. e4 {[%clk 0:03:00.9]} 1... c5 {[%clk 0:02:59.5]} 2. Nf3 {[%clk 0:03:00.7]}
2... e6 {[%clk 0:02:59.6]} 3. d4 {[%clk 0:03:00.7]} 3... cxd4 {[%clk 0:03:00.5]}
4. Nxd4 {[%clk 0:03:01.5]} 4... Nf6 {[%clk 0:03:00.8]} 5. Nc3 {[%clk 0:03:02.1]}
5... d6 {[%clk 0:03:01.2]} 6. g4 {[%clk 0:03:01.4]} 6... h6 {[%clk 0:03:00.8]}
7. Rg1 {[%clk 0:03:01.3]} 7... Nc6 {[%clk 0:02:59.5]} 8. Be3 {[%clk 0:02:59.5]}
8... Be7 {[%clk 0:02:55.4]} 9. h4 {[%clk 0:02:57.7]} 9... d5 {[%clk 0:02:52.1]}
10. exd5 {[%clk 0:02:35.2]} 10... Nxd5 {[%clk 0:02:50.9]} 11. Nxd5 {[%clk
0:02:28.8]} 11... Qxd5 {[%clk 0:02:51.8]} 12. g5 {[%clk 0:02:16.5]} 12... hxg5
{[%clk 0:02:36.3]} 13. hxg5 {[%clk 0:02:16.5]} 13... Nxd4 {[%clk 0:01:45.7]} 14.
Qxd4 {[%clk 0:02:14.5]} 14... Qxd4 {[%clk 0:01:40.4]} 15. Bxd4 {[%clk
0:02:14.2]} 15... Rh5 {[%clk 0:01:33.9]} 16. g6 {[%clk 0:02:07.6]} 16... Bf6
{[%clk 0:01:01.4]} 17. Bxf6 {[%clk 0:02:03.7]} 17... gxf6 {[%clk 0:00:56.3]} 18.
g7 {[%clk 0:02:04.6]} 1-0

[Event "Early-Titled-Tuesday-Blitz-August-29-2023"]
[Site "Chess.com"]
[Date "2023.08.29"]
[Round "6"]
[White "TrenerChos"]
[Black "AnujShrivatri21"]
[Result "1-0"]
[WhiteElo "2577"]
[BlackElo "2801"]
[TimeControl "180+1"]
[EndTime "9:03:04 PDT"]
[Termination "TrenerChos won by resignation"]

1. Nf3 {[%clk 0:03:00.9]} 1... f5 {[%clk 0:02:56.3]} 2. g3 {[%clk 0:03:00.1]}
2... Nf6 {[%clk 0:02:56.6]} 3. Bg2 {[%clk 0:03:01]} 3... g6 {[%clk 0:02:57.5]}
4. O-O {[%clk 0:03:01.8]} 4... Bg7 {[%clk 0:02:58]} 5. d3 {[%clk 0:02:57.1]}
5... d6 {[%clk 0:02:56.5]} 6. Nbd2 {[%clk 0:02:57.4]} 6... O-O {[%clk
0:02:56.8]} 7. e4 {[%clk 0:02:57]} 7... e5 {[%clk 0:02:56.9]} 8. b3 {[%clk
0:02:56]} 8... Nc6 {[%clk 0:02:56.2]} 9. Bb2 {[%clk 0:02:56]} 9... Nh5 {[%clk
0:02:56]} 10. exf5 {[%clk 0:02:54.4]} 10... gxf5 {[%clk 0:02:55.9]} 11. Nxe5
{[%clk 0:02:52.7]} 11... Nxe5 {[%clk 0:02:54.1]} 12. Qxh5 {[%clk 0:02:51.8]}
12... Nf3+ {[%clk 0:02:30]} 13. Nxf3 {[%clk 0:02:50.1]} 13... Bxb2 {[%clk
0:02:30.9]} 14. Rae1 {[%clk 0:02:47.5]} 14... Bf6 {[%clk 0:02:31.4]} 15. h4
{[%clk 0:02:45.2]} 15... Qd7 {[%clk 0:02:29.3]} 16. Ng5 {[%clk 0:02:44.6]} 16...
c6 {[%clk 0:02:25.9]} 17. Re6 {[%clk 0:02:38.4]} 17... Be5 {[%clk 0:02:20.9]}
18. d4 {[%clk 0:02:27.3]} 18... Bxd4 {[%clk 0:02:17.3]} 19. Rfe1 {[%clk
0:02:27.4]} 19... Bf6 {[%clk 0:02:14.2]} 20. Bh3 {[%clk 0:02:15.8]} 20... Qg7
{[%clk 0:02:12.5]} 21. Rxd6 {[%clk 0:02:13.7]} 21... f4 {[%clk 0:01:59.9]} 22.
Bxc8 {[%clk 0:02:11]} 22... Raxc8 {[%clk 0:02:00.8]} 23. Ne6 {[%clk 0:02:10.7]}
23... Qe7 {[%clk 0:02:01.5]} 24. Red1 {[%clk 0:02:03]} 24... Rfe8 {[%clk
0:01:23.3]} 25. Nxf4 {[%clk 0:02:01.8]} 25... Rc7 {[%clk 0:01:21.8]} 26. Re6
{[%clk 0:02:01]} 1-0

[Event "Early-Titled-Tuesday-Blitz-August-29-2023"]
[Site "Chess.com"]
[Date "2023.08.29"]
[Round "6"]
[White "Inepton_Fermion"]
[Black "Maus7"]
[Result "0-1"]
[WhiteElo "2373"]
[BlackElo "2514"]
[TimeControl "180+1"]
[EndTime "9:03:46 PDT"]
[Termination "Maus7 won by resignation"]

1. Nf3 {[%clk 0:03:00.9]} 1... d5 {[%clk 0:02:59.8]} 2. b3 {[%clk 0:03:01.3]}
2... Nf6 {[%clk 0:02:57]} 3. Bb2 {[%clk 0:03:01.7]} 3... Bf5 {[%clk 0:02:56.8]}
4. g3 {[%clk 0:03:01.8]} 4... e6 {[%clk 0:02:55.5]} 5. Bg2 {[%clk 0:03:02.1]}
5... Bd6 {[%clk 0:02:54.2]} 6. O-O {[%clk 0:03:02.2]} 6... O-O {[%clk
0:02:53.9]} 7. d3 {[%clk 0:03:02.6]} 7... a5 {[%clk 0:02:52.9]} 8. a4 {[%clk
0:02:57.7]} 8... c6 {[%clk 0:02:53]} 9. Nbd2 {[%clk 0:02:57.1]} 9... Nbd7 {[%clk
0:02:53.2]} 10. e4 {[%clk 0:02:38.3]} 10... dxe4 {[%clk 0:02:29.5]} 11. dxe4
{[%clk 0:02:39.2]} 11... Bxe4 {[%clk 0:02:30.4]} 12. Nxe4 {[%clk 0:02:33.5]}
12... Nxe4 {[%clk 0:02:31.3]} 13. Nh4 {[%clk 0:01:52.7]} 13... Ndf6 {[%clk
0:02:28.9]} 14. Re1 {[%clk 0:01:40.4]} 14... Nc5 {[%clk 0:02:04.3]} 15. Bxf6
{[%clk 0:01:34.3]} 15... gxf6 {[%clk 0:02:05.2]} 16. Qg4+ {[%clk 0:01:26.5]}
16... Kh8 {[%clk 0:02:05.2]} 17. Rad1 {[%clk 0:01:27.4]} 17... Qe7 {[%clk
0:02:01.7]} 18. Qh5 {[%clk 0:01:10.7]} 18... Be5 {[%clk 0:02:00.5]} 19. f4
{[%clk 0:01:03.9]} 19... Bc3 {[%clk 0:01:54.8]} 20. Re3 {[%clk 0:00:55.9]} 20...
Bb2 {[%clk 0:01:54.7]} 21. Rb1 {[%clk 0:00:32.1]} 21... Bd4 {[%clk 0:01:54.2]}
22. Nf5 {[%clk 0:00:28.5]} 22... exf5 {[%clk 0:01:52.1]} 0-1

[Event "Early-Titled-Tuesday-Blitz-August-29-2023"]
[Site "Chess.com"]
[Date "2023.08.29"]
[Round "6"]
[White "miraitrunks"]
[Black "Khromkin"]
[Result "0-1"]
[WhiteElo "1979"]
[BlackElo "2325"]
[TimeControl "180+1"]
[EndTime "9:03:49 PDT"]
[Termination "Khromkin won by resignation"]

1. e4 {[%clk 0:02:59.4]} 1... c5 {[%clk 0:03:00.2]} 2. Nf3 {[%clk 0:02:59.2]}
2... Nc6 {[%clk 0:03:00.7]} 3. d4 {[%clk 0:02:59]} 3... cxd4 {[%clk 0:03:00.8]}
4. Nxd4 {[%clk 0:02:59.9]} 4... g6 {[%clk 0:02:59.3]} 5. Nxc6 {[%clk 0:02:57.2]}
5... bxc6 {[%clk 0:02:58.5]} 6. Qd4 {[%clk 0:02:58.1]} 6... Nf6 {[%clk
0:02:58.8]} 7. e5 {[%clk 0:02:59]} 7... Nd5 {[%clk 0:02:59.4]} 8. c4 {[%clk
0:02:57.7]} 8... Nb4 {[%clk 0:02:57.9]} 9. Na3 {[%clk 0:02:53.1]} 9... Bg7
{[%clk 0:02:36.4]} 10. c5 {[%clk 0:02:48.5]} 10... Nd5 {[%clk 0:02:32.9]} 11.
Nc4 {[%clk 0:02:47.4]} 11... O-O {[%clk 0:02:28.5]} 12. Be2 {[%clk 0:02:45.5]}
12... d6 {[%clk 0:02:24.5]} 13. O-O {[%clk 0:02:38.7]} 13... Ba6 {[%clk
0:02:15.1]} 14. Rd1 {[%clk 0:02:22.5]} 14... dxe5 {[%clk 0:02:05.4]} 15. Qh4
{[%clk 0:02:07.1]} 15... Qc7 {[%clk 0:01:57.1]} 16. Bh6 {[%clk 0:02:05.5]} 16...
Rad8 {[%clk 0:01:49.8]} 17. Bxg7 {[%clk 0:02:04.5]} 17... Kxg7 {[%clk
0:01:50.3]} 18. Rac1 {[%clk 0:01:47.2]} 18... Nf4 {[%clk 0:01:48.7]} 19. Bf1
{[%clk 0:01:43.4]} 19... Rxd1 {[%clk 0:01:34.8]} 20. Rxd1 {[%clk 0:01:43.9]}
20... Rd8 {[%clk 0:01:33.3]} 21. Re1 {[%clk 0:01:33.6]} 21... Rd4 {[%clk
0:01:29.2]} 22. Nxe5 {[%clk 0:01:01.1]} 22... Ne2+ {[%clk 0:01:26.1]} 23. Rxe2
{[%clk 0:01:01.4]} 23... Rxh4 {[%clk 0:01:24.6]} 0-1